[Event "*** SCC Grand Prix: Titled Tuesday Blitz"]
[Site "Chess.com"]
[Date "2020.06.23"]
[Round "10"]
[White "pavlitas17"]
[Black "Vandros57"]
[Result "1-0"]
[WhiteElo "2323"]
[BlackElo "2162"]
[TimeControl "180+1"]
[EndTime "11:58:04 PDT"]
[Termination "pavlitas17 won on time"]

1. d4 {[%clk 0:03:00.9]} 1... d5 {[%clk 0:02:58.8]} 2. Nf3 {[%clk 0:02:57.7]}
2... Nf6 {[%clk 0:02:57.4]} 3. e3 {[%clk 0:02:53.5]} 3... e6 {[%clk 0:02:56.1]}
4. Bd3 {[%clk 0:02:51.5]} 4... b6 {[%clk 0:02:55.2]} 5. O-O {[%clk 0:02:49.3]}
5... Bb7 {[%clk 0:02:54.3]} 6. Nbd2 {[%clk 0:02:39.8]} 6... Nbd7 {[%clk
0:02:52.8]} 7. b3 {[%clk 0:02:32.2]} 7... Bd6 {[%clk 0:02:51.4]} 8. Bb2 {[%clk
0:02:32.4]} 8... Qe7 {[%clk 0:02:45.2]} 9. Ne5 {[%clk 0:02:32]} 9... Ba3 {[%clk
0:02:42.3]} 10. Bxa3 {[%clk 0:02:31.8]} 10... Qxa3 {[%clk 0:02:40.5]} 11. Rb1
{[%clk 0:02:28.3]} 11... Qd6 {[%clk 0:02:31.9]} 12. Ndf3 {[%clk 0:02:23.2]}
12... Ne4 {[%clk 0:02:27.6]} 13. Bxe4 {[%clk 0:02:00.8]} 13... dxe4 {[%clk
0:02:25.5]} 14. Nc4 {[%clk 0:01:57.5]} 14... Qe7 {[%clk 0:02:12.7]} 15. Nfd2
{[%clk 0:01:50.4]} 15... O-O {[%clk 0:02:09.3]} 16. Re1 {[%clk 0:01:38.1]} 16...
c5 {[%clk 0:02:07.7]} 17. dxc5 {[%clk 0:01:34.8]} 17... Nxc5 {[%clk 0:02:06.2]}
18. Qc1 {[%clk 0:01:30.3]} 18... Qc7 {[%clk 0:01:42.8]} 19. Qa3 {[%clk
0:01:26.6]} 19... a5 {[%clk 0:01:40.8]} 20. Qb2 {[%clk 0:01:13]} 20... Rfd8
{[%clk 0:01:36.9]} 21. a4 {[%clk 0:01:10]} 21... f6 {[%clk 0:01:32.3]} 22. Rbd1
{[%clk 0:01:04.6]} 22... Ba6 {[%clk 0:01:26.8]} 23. Na3 {[%clk 0:01:02.2]} 23...
h6 {[%clk 0:01:08.7]} 24. Ndc4 {[%clk 0:01:01]} 24... Bxc4 {[%clk 0:01:07]} 25.
Nxc4 {[%clk 0:00:59.9]} 25... Rxd1 {[%clk 0:01:05.2]} 26. Rxd1 {[%clk
0:00:58.8]} 26... Rd8 {[%clk 0:01:04.6]} 27. Rxd8+ {[%clk 0:00:58.4]} 27... Qxd8
{[%clk 0:01:03.9]} 28. Qd4 {[%clk 0:00:58.8]} 28... Qc7 {[%clk 0:00:54.4]} 29.
Qd6 {[%clk 0:00:54.1]} 29... Qxd6 {[%clk 0:00:48.3]} 30. Nxd6 {[%clk 0:00:53.6]}
30... f5 {[%clk 0:00:45.7]} 31. Nc8 {[%clk 0:00:51.8]} 31... Nd7 {[%clk
0:00:44.6]} 32. Kf1 {[%clk 0:00:51.8]} 32... Kf7 {[%clk 0:00:43.6]} 33. Ke2
{[%clk 0:00:51.8]} 33... Kf6 {[%clk 0:00:43.6]} 34. Kd2 {[%clk 0:00:50.8]} 34...
Ke5 {[%clk 0:00:42.5]} 35. c4 {[%clk 0:00:46.4]} 35... g5 {[%clk 0:00:34.9]} 36.
Kc3 {[%clk 0:00:46]} 36... f4 {[%clk 0:00:34]} 37. b4 {[%clk 0:00:45.1]} 37...
h5 {[%clk 0:00:26.2]} 38. bxa5 {[%clk 0:00:29.2]} 38... bxa5 {[%clk 0:00:25.8]}
39. Ne7 {[%clk 0:00:29.3]} 39... Nc5 {[%clk 0:00:20.1]} 40. Nc6+ {[%clk
0:00:27.7]} 40... Kd6 {[%clk 0:00:19.7]} 41. Nxa5 {[%clk 0:00:27.1]} 41... Nxa4+
{[%clk 0:00:19.4]} 42. Kb4 {[%clk 0:00:27.4]} 42... Nc5 {[%clk 0:00:18.8]} 43.
Kb5 {[%clk 0:00:25.3]} 43... Nd3 {[%clk 0:00:18.1]} 44. Nb7+ {[%clk 0:00:22.9]}
44... Kc7 {[%clk 0:00:17.5]} 45. Nc5 {[%clk 0:00:23.1]} 45... fxe3 {[%clk
0:00:09.2]} 46. fxe3 {[%clk 0:00:21.2]} 46... Ne1 {[%clk 0:00:03.6]} 47. Nxe6+
{[%clk 0:00:19.1]} 47... Kd6 {[%clk 0:00:02.5]} 48. Nxg5 {[%clk 0:00:17.1]}
48... Ke5 {[%clk 0:00:02.5]} 49. c5 {[%clk 0:00:15.8]} 49... Nxg2 {[%clk
0:00:02.5]} 50. c6 {[%clk 0:00:15.5]} 50... Kd6 {[%clk 0:00:02]} 51. Nxe4+
{[%clk 0:00:13.8]} 51... Kc7 {[%clk 0:00:01.1]} 52. Nf6 {[%clk 0:00:11.2]} 52...
Nxe3 {[%clk 0:00:01.7]} 53. Kc5 {[%clk 0:00:11.2]} 53... Nf5 {[%clk 0:00:01.2]}
54. Nd5+ {[%clk 0:00:11.3]} 1-0

[Event "*** SCC Grand Prix: Titled Tuesday Blitz"]
[Site "Chess.com"]
[Date "2020.06.23"]
[Round "10"]
[White "tamarozi99"]
[Black "VladimirBugayev"]
[Result "1-0"]
[WhiteElo "2096"]
[BlackElo "2260"]
[TimeControl "180+1"]
[EndTime "11:58:08 PDT"]
[Termination "tamarozi99 won on time"]

1. e4 {[%clk 0:03:00.9]} 1... c6 {[%clk 0:03:00]} 2. d4 {[%clk 0:03:00.4]} 2...
d5 {[%clk 0:03:00.5]} 3. e5 {[%clk 0:03:00.7]} 3... Bf5 {[%clk 0:03:00.1]} 4. h4
{[%clk 0:03:00.3]} 4... h6 {[%clk 0:03:00.3]} 5. g4 {[%clk 0:02:58.2]} 5... Be4
{[%clk 0:03:00.4]} 6. f3 {[%clk 0:02:57.7]} 6... Bh7 {[%clk 0:03:00.9]} 7. e6
{[%clk 0:02:56.9]} 7... Qd6 {[%clk 0:03:01.1]} 8. exf7+ {[%clk 0:02:53.7]} 8...
Kxf7 {[%clk 0:03:01.3]} 9. Bd3 {[%clk 0:02:53.8]} 9... Bxd3 {[%clk 0:02:57.5]}
10. Qxd3 {[%clk 0:02:54.7]} 10... e5 {[%clk 0:02:41.9]} 11. Be3 {[%clk
0:02:46.1]} 11... Nd7 {[%clk 0:02:39.7]} 12. Nd2 {[%clk 0:02:42.1]} 12... Re8
{[%clk 0:02:20.1]} 13. O-O-O {[%clk 0:02:30.1]} 13... Ke7 {[%clk 0:02:19.4]} 14.
Qb3 {[%clk 0:02:20.1]} 14... b6 {[%clk 0:02:12.4]} 15. dxe5 {[%clk 0:02:13.2]}
15... Nxe5 {[%clk 0:02:11.4]} 16. Bf4 {[%clk 0:02:11.7]} 16... Nd3+ {[%clk
0:01:51.2]} 17. Qxd3 {[%clk 0:01:56.3]} 17... Qxf4 {[%clk 0:01:51.2]} 18. Nh3
{[%clk 0:01:51.5]} 18... Qa4 {[%clk 0:01:44.6]} 19. Rhe1+ {[%clk 0:01:40]} 19...
Kd8 {[%clk 0:01:43.7]} 20. Rxe8+ {[%clk 0:01:39.8]} 20... Kxe8 {[%clk
0:01:43.8]} 21. Qg6+ {[%clk 0:01:39.7]} 21... Kd8 {[%clk 0:01:41.6]} 22. Kb1
{[%clk 0:01:30.1]} 22... Nf6 {[%clk 0:01:29]} 23. Nf4 {[%clk 0:01:25.5]} 23...
Qxf4 {[%clk 0:01:27.3]} 24. g5 {[%clk 0:01:09.9]} 24... hxg5 {[%clk 0:01:23.1]}
25. hxg5 {[%clk 0:01:09.6]} 25... Nd7 {[%clk 0:01:22.7]} 26. Qxc6 {[%clk
0:01:07.2]} 26... Rh2 {[%clk 0:01:07.1]} 27. Qxd5 {[%clk 0:00:53.3]} 27... Qd6
{[%clk 0:01:03.3]} 28. Qa8+ {[%clk 0:00:43.2]} 28... Nb8 {[%clk 0:00:50]} 29.
Kc1 {[%clk 0:00:42]} 29... Kc8 {[%clk 0:00:39.2]} 30. Qxa7 {[%clk 0:00:35.3]}
30... Be7 {[%clk 0:00:34]} 31. f4 {[%clk 0:00:25.8]} 31... Qc5 {[%clk
0:00:26.2]} 32. Qa4 {[%clk 0:00:13.8]} 32... Bd6 {[%clk 0:00:20.5]} 33. Qe8+
{[%clk 0:00:13.4]} 33... Kc7 {[%clk 0:00:20]} 34. Qf7+ {[%clk 0:00:13.4]} 34...
Nd7 {[%clk 0:00:20]} 35. Kb1 {[%clk 0:00:10.2]} 35... Qd4 {[%clk 0:00:16.1]} 36.
Qc4+ {[%clk 0:00:08.8]} 36... Qxc4 {[%clk 0:00:15.9]} 37. Nxc4 {[%clk
0:00:09.7]} 37... Bxf4 {[%clk 0:00:15.8]} 38. Rf1 {[%clk 0:00:08.8]} 38... Bxg5
{[%clk 0:00:15.5]} 39. b3 {[%clk 0:00:08.8]} 39... Bf6 {[%clk 0:00:15.4]} 40. a4
{[%clk 0:00:07.5]} 40... Ne5 {[%clk 0:00:13.4]} 41. Ne3 {[%clk 0:00:06.3]} 41...
Re2 {[%clk 0:00:11.4]} 42. Nd5+ {[%clk 0:00:05.1]} 42... Kb7 {[%clk 0:00:08.2]}
43. Nxf6 {[%clk 0:00:05.2]} 43... gxf6 {[%clk 0:00:08.1]} 44. Rxf6 {[%clk
0:00:06.1]} 44... Nc6 {[%clk 0:00:08.2]} 45. Rh6 {[%clk 0:00:05.5]} 45... Nd4
{[%clk 0:00:08.1]} 46. Rh7+ {[%clk 0:00:04.1]} 46... Ka6 {[%clk 0:00:07.5]} 47.
Rc7 {[%clk 0:00:03.8]} 47... Ne6 {[%clk 0:00:05.4]} 48. Rc8 {[%clk 0:00:03.6]}
48... Kb7 {[%clk 0:00:05.2]} 49. Re8 {[%clk 0:00:02.8]} 49... Nd4 {[%clk
0:00:04.1]} 50. Rxe2 {[%clk 0:00:02.7]} 50... Nxe2 {[%clk 0:00:04.1]} 51. Kb2
{[%clk 0:00:03.6]} 51... Nd4 {[%clk 0:00:03.8]} 52. c3 {[%clk 0:00:03.8]} 52...
Nc6 {[%clk 0:00:02.9]} 53. b4 {[%clk 0:00:04.1]} 53... Ne5 {[%clk 0:00:01.7]}
54. Kb3 {[%clk 0:00:04.3]} 54... Kc6 {[%clk 0:00:02.3]} 55. c4 {[%clk 0:00:04]}
55... Nd7 {[%clk 0:00:01.5]} 56. a5 {[%clk 0:00:03.7]} 1-0

[Event "*** SCC Grand Prix: Titled Tuesday Blitz"]
[Site "Chess.com"]
[Date "2020.06.23"]
[Round "10"]
[White "Man-Chuk"]
[Black "KaterynaLagno"]
[Result "1-0"]
[WhiteElo "2852"]
[BlackElo "2683"]
[TimeControl "180+1"]
[EndTime "11:58:10 PDT"]
[Termination "Man-Chuk won on time"]

1. e4 {[%clk 0:03:00.9]} 1... e5 {[%clk 0:02:59.7]} 2. Nf3 {[%clk 0:03:00.6]}
2... Nc6 {[%clk 0:03:00.3]} 3. Bc4 {[%clk 0:03:00.5]} 3... Bc5 {[%clk
0:02:59.5]} 4. d3 {[%clk 0:03:00.5]} 4... Nf6 {[%clk 0:02:58.8]} 5. Bg5 {[%clk
0:03:00.1]} 5... h6 {[%clk 0:02:56.2]} 6. Bh4 {[%clk 0:03:00.2]} 6... a6 {[%clk
0:02:52.8]} 7. a4 {[%clk 0:02:58.5]} 7... O-O {[%clk 0:02:39.8]} 8. O-O {[%clk
0:02:51.9]} 8... g5 {[%clk 0:02:31.1]} 9. Bg3 {[%clk 0:02:51.8]} 9... d6 {[%clk
0:02:31.1]} 10. c3 {[%clk 0:02:48.9]} 10... Bg4 {[%clk 0:02:27.5]} 11. Nbd2
{[%clk 0:02:47.8]} 11... Qe7 {[%clk 0:02:18.4]} 12. b4 {[%clk 0:02:30.3]} 12...
Bb6 {[%clk 0:02:17.2]} 13. a5 {[%clk 0:02:28.6]} 13... Ba7 {[%clk 0:02:17.2]}
14. Qb3 {[%clk 0:02:21.2]} 14... Nd8 {[%clk 0:02:05.9]} 15. d4 {[%clk
0:02:05.9]} 15... Nh5 {[%clk 0:01:39.1]} 16. Kh1 {[%clk 0:01:55.5]} 16... Nc6
{[%clk 0:01:32.3]} 17. b5 {[%clk 0:01:25.9]} 17... axb5 {[%clk 0:01:30.6]} 18.
Qxb5 {[%clk 0:01:25.8]} 18... exd4 {[%clk 0:01:27.7]} 19. Qxb7 {[%clk
0:01:22.4]} 19... dxc3 {[%clk 0:01:12.9]} 20. Qxc6 {[%clk 0:01:21.2]} 20... cxd2
{[%clk 0:01:13.6]} 21. Nxd2 {[%clk 0:01:19.3]} 21... Bd7 {[%clk 0:01:04.4]} 22.
Qd5 {[%clk 0:01:19]} 22... Nf6 {[%clk 0:00:49.3]} 23. Qd3 {[%clk 0:01:17.8]}
23... Ng4 {[%clk 0:00:48.7]} 24. Nf3 {[%clk 0:00:59.8]} 24... Be6 {[%clk
0:00:44]} 25. h3 {[%clk 0:00:47.9]} 25... Nf6 {[%clk 0:00:42.2]} 26. e5 {[%clk
0:00:47.8]} 26... dxe5 {[%clk 0:00:36]} 27. Nxe5 {[%clk 0:00:46.3]} 27... Rfd8
{[%clk 0:00:25.4]} 28. Nc6 {[%clk 0:00:20.1]} 28... Qc5 {[%clk 0:00:25.5]} 29.
Nxd8 {[%clk 0:00:20.3]} 29... Bxc4 {[%clk 0:00:26.2]} 30. Qc3 {[%clk 0:00:17.2]}
30... Ne4 {[%clk 0:00:23.9]} 31. Qf3 {[%clk 0:00:10.8]} 31... Nxg3+ {[%clk
0:00:23.2]} 32. fxg3 {[%clk 0:00:10.8]} 32... Rxd8 {[%clk 0:00:23.8]} 33. Rac1
{[%clk 0:00:07.3]} 33... Qb5 {[%clk 0:00:18.3]} 34. Rfd1 {[%clk 0:00:04.7]}
34... Rxd1+ {[%clk 0:00:17.2]} 35. Rxd1 {[%clk 0:00:05.6]} 35... Be6 {[%clk
0:00:17.3]} 36. Qf6 {[%clk 0:00:04.7]} 36... Bc5 {[%clk 0:00:13.4]} 37. Rd8+
{[%clk 0:00:03.2]} 37... Bf8 {[%clk 0:00:14]} 38. Qxh6 {[%clk 0:00:03.6]} 38...
Qc5 {[%clk 0:00:11.7]} 39. a6 {[%clk 0:00:04]} 39... Qe7 {[%clk 0:00:11.9]} 40.
Rb8 {[%clk 0:00:02.7]} 40... Bd5 {[%clk 0:00:11.7]} 41. a7 {[%clk 0:00:03.2]}
41... f6 {[%clk 0:00:09.5]} 42. Qg6+ {[%clk 0:00:02.8]} 42... Kh8 {[%clk
0:00:07.8]} 43. Qh6+ {[%clk 0:00:03.3]} 43... Kg8 {[%clk 0:00:07.8]} 44. a8=Q
{[%clk 0:00:03.7]} 44... Bxa8 {[%clk 0:00:07.2]} 45. Rxa8 {[%clk 0:00:04.6]}
45... Kf7 {[%clk 0:00:07.8]} 46. Qh7+ {[%clk 0:00:04.8]} 46... Ke6 {[%clk
0:00:06.7]} 47. Qe4+ {[%clk 0:00:05.3]} 47... Kf7 {[%clk 0:00:07.2]} 48. Qh7+
{[%clk 0:00:05.3]} 48... Ke6 {[%clk 0:00:07.3]} 49. Qg8+ {[%clk 0:00:05.9]}
49... Kf5 {[%clk 0:00:05.3]} 50. Rxf8 {[%clk 0:00:05.5]} 50... c5 {[%clk
0:00:02.7]} 51. Qd5+ {[%clk 0:00:04.4]} 1-0

[Event "*** SCC Grand Prix: Titled Tuesday Blitz"]
[Site "Chess.com"]
[Date "2020.06.23"]
[Round "10"]
[White "sasko1234"]
[Black "Colombiano07"]
[Result "1-0"]
[WhiteElo "2415"]
[BlackElo "2239"]
[TimeControl "180+1"]
[EndTime "11:58:10 PDT"]
[Termination "sasko1234 won by checkmate"]

1. b3 {[%clk 0:03:00.9]} 1... d5 {[%clk 0:02:59.3]} 2. Bb2 {[%clk 0:03:01.1]}
2... c5 {[%clk 0:03:00.2]} 3. e3 {[%clk 0:03:01.3]} 3... Nc6 {[%clk 0:03:00.8]}
4. f4 {[%clk 0:03:01.6]} 4... Nf6 {[%clk 0:02:59.3]} 5. Nf3 {[%clk 0:03:01.4]}
5... Bg4 {[%clk 0:02:56.7]} 6. Bb5 {[%clk 0:03:01.2]} 6... Rc8 {[%clk
0:02:56.7]} 7. h3 {[%clk 0:02:59.7]} 7... Bxf3 {[%clk 0:02:56.7]} 8. Qxf3 {[%clk
0:02:59.9]} 8... e6 {[%clk 0:02:57.4]} 9. a3 {[%clk 0:02:55.1]} 9... Be7 {[%clk
0:02:55.7]} 10. O-O {[%clk 0:02:54.2]} 10... O-O {[%clk 0:02:55]} 11. Be2 {[%clk
0:02:53.9]} 11... Ne4 {[%clk 0:02:49]} 12. d3 {[%clk 0:02:52.4]} 12... Bf6
{[%clk 0:02:49.6]} 13. c3 {[%clk 0:02:49.4]} 13... Nd6 {[%clk 0:02:47.3]} 14.
Nd2 {[%clk 0:02:42.9]} 14... d4 {[%clk 0:02:46.1]} 15. exd4 {[%clk 0:02:33.8]}
15... cxd4 {[%clk 0:02:46]} 16. c4 {[%clk 0:02:33.7]} 16... Nf5 {[%clk
0:02:44.1]} 17. Ne4 {[%clk 0:02:28.2]} 17... Be7 {[%clk 0:02:42.1]} 18. Bc1
{[%clk 0:02:16.6]} 18... Na5 {[%clk 0:02:39.2]} 19. b4 {[%clk 0:01:52.5]} 19...
Nb3 {[%clk 0:02:38.2]} 20. Rb1 {[%clk 0:01:52.2]} 20... Nxc1 {[%clk 0:02:38.7]}
21. Rfxc1 {[%clk 0:01:49.5]} 21... Ne3 {[%clk 0:02:35.4]} 22. Nf2 {[%clk
0:01:45.9]} 22... Qd7 {[%clk 0:02:30.8]} 23. Ng4 {[%clk 0:01:42.2]} 23... Nxg4
{[%clk 0:02:25.6]} 24. hxg4 {[%clk 0:01:39.4]} 24... g5 {[%clk 0:02:20.2]} 25.
g3 {[%clk 0:01:29.9]} 25... Qc6 {[%clk 0:02:18.6]} 26. Qf2 {[%clk 0:01:21.9]}
26... Rfd8 {[%clk 0:02:16.9]} 27. Bf3 {[%clk 0:01:21.7]} 27... Qa6 {[%clk
0:02:15.5]} 28. Ra1 {[%clk 0:01:14.2]} 28... h6 {[%clk 0:01:58]} 29. Be4 {[%clk
0:01:11.8]} 29... Kg7 {[%clk 0:01:41.7]} 30. Kg2 {[%clk 0:01:11.8]} 30... Rf8
{[%clk 0:01:38.8]} 31. Rh1 {[%clk 0:01:10.6]} 31... Qb6 {[%clk 0:01:20.3]} 32.
Rh5 {[%clk 0:00:49.8]} 32... a5 {[%clk 0:01:18.3]} 33. b5 {[%clk 0:00:49]} 33...
a4 {[%clk 0:01:17.8]} 34. Rah1 {[%clk 0:00:45.1]} 34... Rh8 {[%clk 0:01:16.6]}
35. Qf3 {[%clk 0:00:45.6]} 35... Rb8 {[%clk 0:01:09.2]} 36. Rf1 {[%clk
0:00:43.9]} 36... Qc7 {[%clk 0:00:36.9]} 37. b6 {[%clk 0:00:41.4]} 37... Qd7
{[%clk 0:00:32.3]} 38. c5 {[%clk 0:00:36.2]} 38... f5 {[%clk 0:00:27.4]} 39.
gxf5 {[%clk 0:00:32.6]} 39... exf5 {[%clk 0:00:28.3]} 40. fxg5 {[%clk
0:00:28.5]} 40... Rbf8 {[%clk 0:00:19]} 41. g6 {[%clk 0:00:26.3]} 41... fxe4
{[%clk 0:00:16.7]} 42. Qxe4 {[%clk 0:00:26.4]} 42... Rxf1 {[%clk 0:00:15.8]} 43.
Kxf1 {[%clk 0:00:26.6]} 43... Rf8+ {[%clk 0:00:15.7]} 44. Kg2 {[%clk 0:00:26.1]}
44... Bg5 {[%clk 0:00:14.8]} 45. Rh1 {[%clk 0:00:24.8]} 45... Qe7 {[%clk
0:00:14.8]} 46. Qxe7+ {[%clk 0:00:22.4]} 46... Bxe7 {[%clk 0:00:15.7]} 47. Rc1
{[%clk 0:00:21.9]} 47... Kxg6 {[%clk 0:00:15.4]} 48. Rc4 {[%clk 0:00:21.7]}
48... Rc8 {[%clk 0:00:14.5]} 49. c6 {[%clk 0:00:21.2]} 49... Rxc6 {[%clk
0:00:13.8]} 50. Rxa4 {[%clk 0:00:20.9]} 50... Rc3 {[%clk 0:00:12.4]} 51. Rxd4
{[%clk 0:00:20.9]} 51... Rxa3 {[%clk 0:00:12]} 52. Rd7 {[%clk 0:00:20.6]} 52...
Bc5 {[%clk 0:00:11.7]} 53. Rxb7 {[%clk 0:00:20.5]} 53... Rxd3 {[%clk 0:00:11.8]}
54. Kh3 {[%clk 0:00:20.9]} 54... Rb3 {[%clk 0:00:11.7]} 55. Rc7 {[%clk
0:00:21.1]} 55... Bxb6 {[%clk 0:00:11.6]} 56. Rc6+ {[%clk 0:00:21.5]} 56... Kg5
{[%clk 0:00:11.4]} 57. Rc8 {[%clk 0:00:20.2]} 57... Bf2 {[%clk 0:00:11.1]} 58.
Rg8+ {[%clk 0:00:19.8]} 58... Kh5 {[%clk 0:00:11]} 59. Rg7 {[%clk 0:00:19.5]}
59... Bd4 {[%clk 0:00:08.4]} 60. Rg8 {[%clk 0:00:19.6]} 60... Bf6 {[%clk
0:00:08.2]} 61. Rf8 {[%clk 0:00:18.4]} 61... Bg5 {[%clk 0:00:07.3]} 62. Rg8
{[%clk 0:00:18.4]} 62... Rb6 {[%clk 0:00:06.7]} 63. g4# {[%clk 0:00:17.8]} 1-0

[Event "*** SCC Grand Prix: Titled Tuesday Blitz"]
[Site "Chess.com"]
[Date "2020.06.23"]
[Round "10"]
[White "IMHansNiemann"]
[Black "Shield12"]
[Result "1-0"]
[WhiteElo "2971"]
[BlackElo "2843"]
[TimeControl "180+1"]
[EndTime "11:58:11 PDT"]
[Termination "IMHansNiemann won by resignation"]

1. d4 {[%clk 0:03:00.9]} 1... d5 {[%clk 0:02:59.4]} 2. Nc3 {[%clk 0:03:00.3]}
2... Nf6 {[%clk 0:02:59.1]} 3. Bf4 {[%clk 0:03:00.8]} 3... e6 {[%clk 0:02:58.5]}
4. e3 {[%clk 0:03:00.9]} 4... Bb4 {[%clk 0:02:55.7]} 5. Ne2 {[%clk 0:02:54]}
5... O-O {[%clk 0:02:54.4]} 6. a3 {[%clk 0:02:53.6]} 6... Be7 {[%clk 0:02:54]}
7. Ng1 {[%clk 0:02:52.9]} 7... c5 {[%clk 0:02:52.6]} 8. Nf3 {[%clk 0:02:52.7]}
8... Nc6 {[%clk 0:02:52.2]} 9. dxc5 {[%clk 0:02:52]} 9... Bxc5 {[%clk
0:02:50.7]} 10. Bb5 {[%clk 0:02:49.9]} 10... Bd7 {[%clk 0:02:45.8]} 11. O-O
{[%clk 0:02:49.7]} 11... Rc8 {[%clk 0:02:45.6]} 12. Bd3 {[%clk 0:02:46.2]} 12...
Qe7 {[%clk 0:02:42.4]} 13. e4 {[%clk 0:02:46.1]} 13... d4 {[%clk 0:02:38.8]} 14.
e5 {[%clk 0:02:30.9]} 14... dxc3 {[%clk 0:02:12.9]} 15. exf6 {[%clk 0:02:30.2]}
15... gxf6 {[%clk 0:02:12.7]} 16. b4 {[%clk 0:02:30.3]} 16... Bb6 {[%clk
0:02:10.8]} 17. Bd6 {[%clk 0:02:29.7]} 17... Qe8 {[%clk 0:02:04]} 18. Bxf8
{[%clk 0:01:52]} 18... Kxf8 {[%clk 0:02:03.1]} 19. Qe2 {[%clk 0:01:49.4]} 19...
f5 {[%clk 0:02:02.4]} 20. Rad1 {[%clk 0:01:47.3]} 20... Qe7 {[%clk 0:01:58]} 21.
Ne5 {[%clk 0:01:44.7]} 21... Nxe5 {[%clk 0:01:47.8]} 22. Qxe5 {[%clk 0:01:44]}
22... Qg5 {[%clk 0:01:45.9]} 23. Be4 {[%clk 0:01:32.7]} 23... Bc7 {[%clk
0:01:38.9]} 24. Qh8+ {[%clk 0:01:09.7]} 24... Ke7 {[%clk 0:01:38.9]} 25. Qd4
{[%clk 0:01:10.2]} 25... Be8 {[%clk 0:00:58.9]} 26. Bxb7 {[%clk 0:00:55.9]}
26... Rd8 {[%clk 0:00:58.8]} 27. Qc5+ {[%clk 0:00:53.5]} 27... Bd6 {[%clk
0:00:58.8]} 28. Qxc3 {[%clk 0:00:52.4]} 28... Bb5 {[%clk 0:00:49.9]} 29. Rfe1
{[%clk 0:00:45.1]} 29... Bxh2+ {[%clk 0:00:45.9]} 30. Kxh2 {[%clk 0:00:40.7]}
30... Rxd1 {[%clk 0:00:46.8]} 31. Qc5+ {[%clk 0:00:36.2]} 31... Kf6 {[%clk
0:00:36.8]} 32. Qc3+ {[%clk 0:00:27.9]} 32... Ke7 {[%clk 0:00:34.8]} 33. Rxd1
{[%clk 0:00:26.9]} 33... Qh5+ {[%clk 0:00:35]} 34. Qh3 {[%clk 0:00:24.5]} 34...
Qxd1 {[%clk 0:00:35.2]} 35. Qh4+ {[%clk 0:00:24.6]} 35... Kd7 {[%clk 0:00:34.5]}
36. c4 {[%clk 0:00:22.4]} 36... Qd6+ {[%clk 0:00:28.1]} 37. g3 {[%clk
0:00:22.1]} 37... Bc6 {[%clk 0:00:25.8]} 38. Bxc6+ {[%clk 0:00:20.6]} 38... Qxc6
{[%clk 0:00:26.2]} 39. Qd4+ {[%clk 0:00:20.2]} 39... Ke8 {[%clk 0:00:25.3]} 40.
b5 {[%clk 0:00:20.6]} 40... Qc7 {[%clk 0:00:23.5]} 41. c5 {[%clk 0:00:20.3]}
41... Ke7 {[%clk 0:00:20.8]} 42. c6 {[%clk 0:00:20.2]} 42... e5 {[%clk
0:00:20.9]} 43. Qc5+ {[%clk 0:00:20]} 43... Ke6 {[%clk 0:00:21.1]} 44. a4 {[%clk
0:00:20.5]} 44... f6 {[%clk 0:00:20.9]} 45. a5 {[%clk 0:00:20.3]} 45... f4
{[%clk 0:00:17.6]} 46. b6 {[%clk 0:00:18.3]} 46... fxg3+ {[%clk 0:00:17.5]} 47.
fxg3 {[%clk 0:00:17.8]} 47... axb6 {[%clk 0:00:18.4]} 48. axb6 {[%clk
0:00:17.1]} 48... Qg7 {[%clk 0:00:17.5]} 49. Kg2 {[%clk 0:00:10]} 49... Qg4
{[%clk 0:00:16.5]} 50. c7 {[%clk 0:00:08.4]} 50... Qe2+ {[%clk 0:00:16.1]} 51.
Qf2 {[%clk 0:00:08.8]} 51... Qxf2+ {[%clk 0:00:15.1]} 52. Kxf2 {[%clk
0:00:08.4]} 52... Kd7 {[%clk 0:00:16]} 53. g4 {[%clk 0:00:08.9]} 53... h6 {[%clk
0:00:14]} 54. Kf3 {[%clk 0:00:09.3]} 54... Kc6 {[%clk 0:00:13.9]} 55. Ke4 {[%clk
0:00:09.7]} 55... Kb7 {[%clk 0:00:13.7]} 56. Kd5 {[%clk 0:00:09.7]} 56... Kxb6
{[%clk 0:00:04.2]} 57. c8=Q {[%clk 0:00:08.4]} 1-0